fUSD/lending_fUSD_20250620
["ID","MTS","AMOUNT","RATE_DAILY","PERIOD"]
[366690806,1750413070028,-490.0,0.00025883,4]
[366690807,1750413070040,-1517.81,0.00025883,4]
[366690808,1750413070050,-574.775804,0.00025883,7]
[366690809,1750413070061,-1153.21,0.00025883,4]
[366690810,1750413070071,-608.75,0.00025883,4]
[366690811,1750413070081,-574.775804,0.00025883,7]
[366690812,1750413070091,-8697.19,0.00025883,4]
[366690813,1750413070100,-490.0,0.00025883,4]
[366690814,1750413070110,-490.0,0.00025883,4]
[366690815,1750413070122,-490.0,0.00025883,4]
[366690816,1750413070132,-490.0,0.00025883,4]
[366690817,1750413070143,-2135.83,0.00025883,4]
[366690818,1750413070155,-459.40601,0.00025883,7]
[366690819,1750413070166,-3504.12,0.00025883,4]
[366690820,1750413070176,-490.0,0.00025883,4]
[366690821,1750413070187,-490.0,0.00025883,4]
[366690822,1750413070197,-459.40601,0.00025883,7]
[366690823,1750413070208,-490.0,0.00025883,4]
[366690824,1750413070217,-4119.3,0.00025883,4]
[366690825,1750413070227,-2616.436017,0.00025883,7]
[366690826,1750413070238,-2616.436017,0.00025883,7]
[366690827,1750413070248,-578.36610687,0.00025883,4]
[366690828,1750413070258,-171.362756,0.00025883,7]
[366690829,1750413070268,-171.362756,0.00025883,7]
[366690830,1750413070279,-490.0,0.00025883,4]
[366690831,1750413070289,-2616.436017,0.00025883,7]
[366690832,1750413070300,-490.0,0.00025883,4]
[366690833,1750413070310,-2616.436017,0.00025883,7]
[366690834,1750413070321,-826.47,0.00025883,4]
[366690835,1750413070331,-490.0,0.00025883,4]
[366690836,1750413070341,-171.362756,0.00025883,7]
[366690837,1750413070351,-490.0,0.00025883,4]
[366690838,1750413070362,-171.362756,0.00025883,7]
[366690839,1750413070372,-151.0,0.00025883,7]
[366690840,1750413070382,-5428.04,0.00025883,4]
[366690841,1750413070393,-490.0,0.00025883,4]
[366690842,1750413070403,-490.0,0.00025883,4]
[366690843,1750413070414,-490.0,0.00025883,4]
[366690844,1750413070424,-1283.35,0.00025883,4]
[366690845,1750413070435,-1604.94,0.00025883,4]
[366690846,1750413070445,-707.26,0.00025883,4]
[366690847,1750413070456,-2827.458916,0.00025883,7]
[366690848,1750413070466,-490.0,0.00025883,4]
[366690849,1750413070476,-300.0,0.00025883,4]
[366690850,1750413070487,-1040.51,0.00025883,4]
[366690851,1750413070498,-490.0,0.00025883,4]
[366690852,1750413070508,-2827.458916,0.00025883,7]
[366690853,1750413070518,-2509.31,0.00025883,4]
[366690854,1750413070529,-490.0,0.00025883,4]
[366690855,1750413070539,-610.84,0.00025883,4]
[366690856,1750413070550,-490.0,0.00025883,4]
[366690857,1750413070560,-2323.49,0.00025883,4]
[366690858,1750413070571,-490.0,0.00025883,4]
[366690859,1750413070582,-982.17,0.00025883,4]
[366690860,1750413070592,-490.0,0.00025883,4]
[366690861,1750413070602,-504.96,0.00025883,4]
[366690862,1750413070612,-10120.59,0.00025883,4]
[366690863,1750413070626,-490.0,0.00025883,4]
[366690864,1750413070636,-2532.5,0.00025883,4]
[366690865,1750413070646,-490.0,0.00025883,4]
[366690866,1750413070656,-490.0,0.00025883,4]
[366690867,1750413070666,-490.0,0.00025883,4]
[366690868,1750413070677,-2888.16,0.00025883,4]
[366690869,1750413070687,-3613.05,0.00025883,4]
[366690870,1750413070697,-490.0,0.00025883,4]
[366690871,1750413070707,-2679.24,0.00025883,4]
[366690872,1750413070718,-490.0,0.00025883,4]
[366690873,1750413070744,-490.0,0.00025883,4]
[366690874,1750413070756,-715.93,0.00025883,4]
[366690875,1750413070767,-527.03,0.00025883,4]
[366690876,1750413070779,-1753.61,0.00025883,4]
[366690877,1750413070790,-16656.13,0.00025883,4]
[366690878,1750413070801,-531.03,0.00025883,4]
[366690879,1750413070813,-490.0,0.00025883,4]
[366690880,1750413070824,-1643.908818,0.00025883,7]
[366690881,1750413070836,-659.37,0.00025883,4]
[366690882,1750413070847,-1463.07,0.00025883,4]
[366690883,1750413070859,-563.33,0.00025883,4]
[366690884,1750413070872,-5881.55,0.00025883,4]
[366690885,1750413070883,-490.0,0.00025883,4]
[366690886,1750413070895,-1249.92,0.00025883,4]
[366690887,1750413070907,-490.0,0.00025883,4]
[366690888,1750413070919,-490.0,0.00025883,4]
[366690889,1750413070931,-1643.908818,0.00025883,7]
[366690890,1750413070943,-1334.66,0.00025883,4]
[366690891,1750413070955,-507.64,0.00025883,4]
[366690892,1750413070967,-690.9,0.00025883,4]
[366690893,1750413070980,-374.434222,0.00025883,7]
[366690894,1750413071422,-490.0,0.00025883,4]
[366690895,1750413071449,-521.5,0.00025883,4]
[366690896,1750413071466,-374.434222,0.00025883,7]
[366690897,1750413071477,-548.51,0.00025883,4]
[366690898,1750413071488,-5288.92,0.00025883,4]
[366690899,1750413071499,-490.0,0.00025883,4]
[366690900,1750413071509,-490.0,0.00025883,4]
[366690901,1750413071520,-2173.34,0.00025883,4]
[366690902,1750413071530,-871.17,0.00025883,4]
[366690903,1750413071541,-490.0,0.00025883,4]
[366690904,1750413071551,-490.0,0.00025883,4]
[366690905,1750413071562,-490.0,0.00025883,4]
[366690906,1750413071572,-151.0,0.00025883,7]
[366690907,1750413071583,-151.0,0.00025883,7]
[366690908,1750413071593,-1558.0,0.00025883,4]
[366690909,1750413071603,-12412.95,0.00025883,4]
[366690910,1750413071614,-490.0,0.00025883,4]
[366690911,1750413071628,-490.0,0.00025883,4]
[366690912,1750413071639,-1141.36,0.00025883,4]
[366690913,1750413071649,-622.23,0.00025883,4]
[366690914,1750413071660,-510.53,0.00025883,4]
[366690915,1750413071671,-490.0,0.00025883,4]
[366690916,1750413071681,-1676.65,0.00025883,4]
[366690917,1750413071692,-490.0,0.00025883,4]
[366690918,1750413071702,-1486.47,0.00025883,4]
[366690919,1750413071713,-403.79177055,0.00025883,4]
[366690920,1750413071723,-1891.52,0.00025883,4]
[366690921,1750413071735,-490.0,0.00025883,4]
[366690922,1750413071747,-512.73,0.00025883,4]
[366690923,1750413071758,-676.56,0.00025883,4]
[366690924,1750413071769,-1012.79,0.00025883,4]
[366690925,1750413071780,-2540.98,0.00025883,4]
[366690926,1750413071791,-1491.04,0.00025883,4]
[366690927,1750413071802,-490.0,0.00025883,4]
[366690928,1750413071813,-151.0,0.00025883,7]
[366690929,1750413071825,-490.0,0.00025883,4]
[366690930,1750413071836,-490.0,0.00025883,4]
[366690931,1750413071848,-1016.28,0.00025883,4]
[366690932,1750413071858,-515.24,0.00025883,4]
[366690933,1750413071869,-490.0,0.00025883,4]
[366690934,1750413071879,-490.0,0.00025883,4]
[366690935,1750413071895,-542.56,0.00025883,4]
[366690936,1750413071906,-490.0,0.00025883,4]
[366690937,1750413071916,-490.0,0.00025883,4]
[366690938,1750413071926,-1235.9,0.00025883,4]
[366690939,1750413071936,-595.36,0.00025883,4]
[366690940,1750413071946,-490.0,0.00025883,4]
[366690941,1750413071957,-550.76,0.00025883,4]
[366690942,1750413071967,-11380.02,0.00025883,4]
[366690943,1750413071977,-490.0,0.00025883,4]
[366690944,1750413071988,-2638.08,0.00025883,4]
[366690945,1750413071997,-552.52,0.00025883,4]
[366690946,1750413072008,-666.09,0.00025883,4]
[366690947,1750413072018,-990.64,0.00025883,4]
[366690948,1750413072029,-1557.94,0.00025883,4]
[366690949,1750413072039,-8056.15,0.00025883,4]
[366690950,1750413072049,-490.0,0.00025883,4]
[366690951,1750413072060,-490.0,0.00025883,4]
[366690952,1750413072070,-151.0,0.00025883,7]
[366690953,1750413072080,-210.63720459,0.00025883,4]
[366690954,1750413072090,-739.69,0.00025883,4]
[366690955,1750413072100,-1103.43,0.00025888,4]
[366690956,1750413072111,-152.114809,0.00025889,7]
[366690957,1750413072121,-1169.102064,0.00025889,7]
[366690958,1750413072131,-1169.102064,0.00025889,7]
[366690959,1750413072141,-151.0,0.00025889,7]
[366690960,1750413072152,-150.0,0.00025891,2]
[366690961,1750413072162,-168.68331976,0.00025892,2]
[366690962,1750413072172,-150.0,0.00025894,2]
[366690963,1750413072183,-490.0,0.00025896,4]
[366690964,1750413072194,-490.0,0.00025896,4]
[366690965,1750413072204,-490.0,0.00025896,4]
[366690966,1750413072215,-662.77,0.00025896,4]
[366690967,1750413072226,-490.0,0.00025896,4]
[366690968,1750413072237,-490.0,0.00025896,4]
[366690969,1750413072247,-490.0,0.00025896,4]
[366690970,1750413072257,-490.0,0.00025896,4]
[366690971,1750413072267,-490.0,0.00025896,4]
[366690972,1750413072277,-543.26,0.00025896,4]
[366690973,1750413072288,-490.0,0.00025896,4]
[366690974,1750413072299,-834.561666,0.00025896,7]
[366690975,1750413072310,-834.561666,0.00025896,7]
[366690976,1750413072320,-188.779238,0.00025896,7]
[366690977,1750413072344,-188.779238,0.00025896,7]
[366690978,1750413072356,-280.038008,0.00025896,7]
[366690979,1750413072367,-280.038008,0.00025896,7]
[366690980,1750413072378,-151.0,0.00025896,7]
[366690981,1750413072389,-269.848595,0.00025896,7]
[366690982,1750413072401,-303.122469,0.00025896,7]
[366690983,1750413072412,-303.122469,0.00025896,7]
[366690984,1750413072423,-437.508586,0.00025896,7]
[366690985,1750413072434,-437.508586,0.00025896,7]
[366690986,1750413072445,-490.0,0.00025897,4]
[366690987,1750413072457,-490.0,0.00025897,4]
[366690988,1750413072468,-490.0,0.00025897,4]
[366690989,1750413072479,-490.0,0.00025897,4]
[366690990,1750413072490,-490.0,0.00025897,4]
[366690991,1750413072502,-490.0,0.00025897,4]
[366690992,1750413072513,-490.0,0.00025897,4]
[366690993,1750413072524,-151.0,0.00025897,7]
[366690994,1750413072534,-151.0,0.00025897,7]
[366690995,1750413072546,-628.359449,0.00025897,7]
[366690996,1750413072556,-177.427949,0.00025897,7]
[366690997,1750413072567,-628.359449,0.00025897,7]
[366690998,1750413072578,-177.427949,0.00025897,7]
[366690999,1750413072589,-630.43,0.00025897,4]
[366691000,1750413072600,-459.40601,0.00025897,7]
[366691001,1750413072611,-459.40601,0.00025897,7]
[366691002,1750413072623,-2827.458916,0.00025897,7]
[366691003,1750413072634,-2827.458916,0.00025897,7]
[366691004,1750413072644,-500.0,0.00025897,4]
[366691005,1750413072654,-666.0,0.00025898,2]
[366691006,1750413072665,-300.0,0.00025898,10]
[366691007,1750413072676,-400.991217,0.00025898,7]
[366691008,1750413072687,-400.991217,0.00025898,7]
[366691009,1750413072698,-630.43,0.00025898,4]
[366691010,1750413072709,-500.0,0.00025898,4]
[366691011,1750413072726,-490.0,0.00025899,4]
[366691012,1750413072738,-490.0,0.00025899,4]
[366691013,1750413072749,-490.0,0.00025899,4]
[366691014,1750413072765,-490.0,0.00025899,4]
[366691015,1750413072783,-378.34753184,0.00025899,4]
[366691016,1750413072794,-490.0,0.00025899,4]
[366691017,1750413072806,-490.0,0.00025899,4]
[366691018,1750413072816,-490.0,0.00025899,4]
[366691019,1750413072828,-490.0,0.00025899,4]
[366691020,1750413072840,-490.0,0.00025899,4]
[366691021,1750413072854,-490.0,0.00025899,4]
[366691022,1750413072864,-490.0,0.00025899,4]
[366691023,1750413072875,-490.0,0.00025899,4]
[366691024,1750413072886,-490.0,0.00025899,4]
[366691025,1750413072896,-490.0,0.00025899,4]
[366691026,1750413072907,-490.0,0.00025899,4]
[366691027,1750413072918,-490.0,0.00025899,4]
[366691028,1750413072929,-490.0,0.00025899,4]
[366691029,1750413072940,-490.0,0.00025899,4]
[366691030,1750413072952,-490.0,0.00025899,4]
[366691031,1750413072963,-490.0,0.00025899,4]
[366691032,1750413072974,-490.0,0.00025899,4]
[366691033,1750413072985,-250.81687469,0.00025899,4]
[366691034,1750413072996,-490.0,0.00025899,4]
[366691035,1750413073009,-490.0,0.00025899,4]
[366691036,1750413073019,-490.0,0.00025899,4]
[366691037,1750413073030,-490.0,0.00025899,4]
[366691038,1750413073041,-490.0,0.00025899,4]
[366691039,1750413073053,-490.0,0.00025899,4]
[366691040,1750413073064,-490.0,0.00025899,4]
[366691041,1750413073075,-490.0,0.00025899,4]
[366691042,1750413073085,-490.0,0.00025899,4]
[366691043,1750413073096,-490.0,0.00025899,4]
[366691044,1750413073109,-490.0,0.00025899,4]
[366691045,1750413073120,-490.0,0.00025899,4]
[366691046,1750413073130,-168.834443,0.00025899,7]
[366691047,1750413073142,-420.79338939,0.00025899,4]
[366691048,1750413073154,-490.0,0.00025899,4]
[366691049,1750413073164,-1169.102064,0.00025899,7]
[366691050,1750413073175,-168.834443,0.00025899,7]
[366691051,1750413073186,-1169.102064,0.00025899,7]
[366691052,1750413073196,-490.0,0.00025899,4]
[366691053,1750413073206,-490.0,0.00025899,4]
[366691054,1750413073218,-543.64185168,0.00025899,4]
[366691055,1750413073229,-490.0,0.00025899,4]
[366691056,1750413073239,-490.0,0.00025899,4]
[366691057,1750413073249,-490.0,0.00025899,4]
[366691058,1750413073260,-151.0,0.00025899,7]
[366691059,1750413073270,-252.255813,0.00025899,7]
[366691060,1750413073280,-151.0,0.00025899,7]
[366691061,1750413073290,-252.255813,0.00025899,7]
[366691062,1750413073304,-3566.712703,0.00025899,7]
[366691063,1750413073315,-3566.712703,0.00025899,7]
[366691064,1750413073327,-595.47,0.00025899,4]
[366691065,1750413073339,-490.0,0.00025899,4]
[366691066,1750413073350,-490.0,0.00025899,4]
[366691067,1750413073361,-490.0,0.00025899,4]
[366691068,1750413073371,-151.0,0.00025899,7]
[366691069,1750413073381,-490.0,0.00025899,4]
[366691070,1750413073392,-490.0,0.00025899,4]
[366691071,1750413073402,-490.0,0.00025899,4]
[366691072,1750413073413,-805.90777,0.00025899,7]
[366691073,1750413073423,-805.90777,0.00025899,7]
[366691074,1750413073434,-1126.12,0.00025899,4]
[366691075,1750413073444,-490.0,0.00025899,4]
[366691076,1750413073454,-524.666575,0.00025899,7]
[366691077,1750413073465,-568.22,0.00025899,4]
[366691078,1750413073476,-524.666575,0.00025899,7]
[366691079,1750413073491,-10000.0,0.00025899,7]
[366691080,1750413073502,-808.99,0.00025899,4]
[366691081,1750413073512,-10000.0,0.00025899,7]
[366691082,1750413073523,-10000.0,0.00025899,7]
[366691083,1750413073533,-1324.84,0.00025899,4]
[366691084,1750413073543,-10000.0,0.00025899,7]
[366691085,1750413073554,-151.0,0.00025899,7]
[366691086,1750413073564,-10000.0,0.00025899,7]
[366691087,1750413073575,-151.0,0.00025899,7]
[366691088,1750413073586,-1791.190584,0.00025899,7]
[366691089,1750413073596,-490.0,0.00025899,4]
[366691090,1750413073606,-441.712036,0.00025899,7]
[366691091,1750413073618,-151.453602,0.00025899,7]
[366691092,1750413073633,-441.712036,0.00025899,7]
[366691093,1750413073643,-689.8,0.00025899,4]
[366691094,1750413073654,-1791.190584,0.00025899,7]
[366691095,1750413073664,-490.0,0.00025899,4]
[366691096,1750413073676,-1489.17,0.00025899,4]
[366691097,1750413073687,-490.0,0.00025899,4]
[366691098,1750413073697,-1471.49,0.00025899,4]
[366691099,1750413073707,-151.0,0.00025899,7]
[366691100,1750413073718,-151.0,0.00025899,7]
[366691101,1750413073730,-490.0,0.00025899,4]
[366691102,1750413073741,-1337.63,0.00025899,4]
[366691103,1750413073752,-1878.77,0.00025899,4]
[366691104,1750413073763,-1012.62,0.00025899,4]
[366691105,1750413073773,-1347.98,0.00025899,4]
[366691106,1750413073783,-490.53,0.00025899,4]
[366691107,1750413073794,-600.96,0.00025899,4]
[366691108,1750413073804,-490.0,0.00025899,4]
[366691109,1750413073815,-490.0,0.00025899,4]
[366691110,1750413073825,-1038.89,0.00025899,4]
[366691111,1750413073836,-2119.64,0.00025899,4]
[366691112,1750413073846,-1487.04,0.00025899,4]
[366691113,1750413073856,-1710.44,0.00025899,4]
[366691114,1750413073866,-2462.65,0.00025899,4]
[366691115,1750413073876,-151.0,0.00025899,7]
[366691116,1750413073887,-1729.04,0.00025899,4]
[366691117,1750413073898,-1318.77,0.00025899,4]
[366691118,1750413073908,-490.0,0.00025899,4]
[366691119,1750413073920,-312.55,0.00025899,4]
[366691120,1750413073930,-1731.75,0.00025899,4]
[366691121,1750413073940,-1462.04,0.00025899,4]
[366691122,1750413073951,-2539.96,0.00025899,4]
[366691123,1750413073962,-151.0,0.00025899,7]
[366691124,1750413073973,-805.96,0.00025899,4]
[366691125,1750413073983,-491.12,0.00025899,4]
[366691126,1750413073993,-614.06,0.00025899,4]
[366691127,1750413074004,-834.85,0.00025899,4]
[366691128,1750413074014,-1906.28,0.00025899,4]
[366691129,1750413074024,-490.0,0.00025899,4]
[366691130,1750413074193,-2244.23,0.00025899,4]
[366691131,1750413074203,-575.35,0.00025899,4]
[366691132,1750413074213,-1103.43,0.00025899,4]
[366691133,1750413074224,-594.84,0.00025899,4]
[366691134,1750413074234,-258.691696,0.00025899,7]
[366691135,1750413074244,-490.0,0.00025899,4]
[366691136,1750413074253,-575.47,0.00025899,4]
[366691137,1750413074263,-1082.97,0.00025899,4]
[366691138,1750413074273,-1039.93,0.00025899,4]
[366691139,1750413074283,-1320.26,0.00025899,4]
[366691140,1750413074295,-1643.908818,0.00025899,7]
[366691141,1750413074305,-1240.68,0.00025899,4]
[366691142,1750413074316,-1643.908818,0.00025899,7]
[366691143,1750413074326,-490.0,0.00025899,4]
[366691144,1750413074336,-490.0,0.00025899,4]
[366691145,1750413074346,-490.0,0.00025899,4]
[366691146,1750413074356,-321.03104183,0.00025899,4]
[366691147,1750413074366,-151.0,0.00025899,7]
[366691148,1750413074377,-1300.0,0.000259,9]
[366691149,1750413074387,-202.18,0.000259,2]
[366691150,1750413074396,-344.19337075,0.00025908,2]
[366691151,1750413074406,-1169.102064,0.00025908,7]
[366691152,1750413074415,-1169.102064,0.00025908,7]
[366691153,1750413074426,-300.0,0.00025908,10]
[366691154,1750413074435,-834.561666,0.00025908,7]
[366691155,1750413074445,-834.561666,0.00025908,7]
[366691156,1750413074455,-151.0,0.00025908,7]
[366691157,1750413074464,-188.779238,0.00025908,7]
[366691158,1750413074474,-188.779238,0.00025908,7]
[366691159,1750413074484,-280.038008,0.00025908,7]
[366691160,1750413074494,-280.038008,0.00025908,7]
[366691161,1750413074505,-151.0,0.00025908,7]
[366691162,1750413074516,-303.122469,0.00025908,7]
[366691163,1750413074526,-303.122469,0.00025908,7]
[366691164,1750413074537,-437.508586,0.00025908,7]
[366691165,1750413074547,-437.508586,0.00025908,7]
[366691166,1750413074556,-630.43,0.00025908,4]
[366691167,1750413074566,-337.2,0.00025908,4]
[366691168,1750413074575,-490.0,0.00025909,4]
[366691169,1750413074585,-490.0,0.00025909,4]
[366691170,1750413074596,-490.0,0.00025909,4]
[366691171,1750413074606,-300.0,0.00025909,4]
[366691172,1750413074616,-490.0,0.00025909,4]
[366691173,1750413074627,-1040.29,0.00025909,4]
[366691174,1750413074637,-168.834443,0.00025909,7]
[366691175,1750413074646,-490.0,0.00025909,4]
[366691176,1750413074656,-168.834443,0.00025909,7]
[366691177,1750413074666,-490.0,0.00025909,4]
[366691178,1750413074676,-490.0,0.00025909,4]
[366691179,1750413074685,-490.0,0.00025909,4]
[366691180,1750413074694,-490.0,0.00025909,4]
[366691181,1750413074704,-562.27,0.00025909,4]
[366691182,1750413074714,-490.0,0.00025909,4]
[366691183,1750413074723,-490.0,0.00025909,4]
[366691184,1750413074733,-590.73,0.00025909,4]
[366691185,1750413074743,-546.33,0.00025909,4]
[366691186,1750413074753,-490.0,0.00025909,4]
[366691187,1750413074762,-490.0,0.00025909,4]
[366691188,1750413074773,-490.0,0.00025909,4]
[366691189,1750413074782,-490.0,0.00025909,4]
[366691190,1750413074792,-490.0,0.00025909,4]
[366691191,1750413074801,-490.0,0.00025909,4]
[366691192,1750413074810,-988.83,0.00025909,4]
[366691193,1750413074820,-490.0,0.00025909,4]
[366691194,1750413074829,-305.89401199,0.00025909,4]
[366691195,1750413074838,-490.0,0.00025909,4]
[366691196,1750413074848,-490.0,0.00025909,4]
[366691197,1750413074857,-490.0,0.00025909,4]
[366691198,1750413074866,-710.04,0.00025909,4]
[366691199,1750413074875,-302.33,0.00025909,4]
[366691200,1750413074885,-490.0,0.00025909,4]
[366691201,1750413074895,-1171.04,0.00025909,4]
[366691202,1750413074905,-428.97928821,0.00025909,4]
[366691203,1750413074914,-1022.56,0.00025909,4]
[366691204,1750413074924,-490.0,0.00025909,4]
[366691205,1750413074933,-590.49,0.00025909,4]
[366691206,1750413074943,-490.0,0.00025909,4]
[366691207,1750413074953,-490.0,0.00025909,4]
[366691208,1750413074962,-490.0,0.00025909,4]
[366691209,1750413074972,-866.2,0.00025909,4]
[366691210,1750413074981,-490.0,0.00025909,4]
[366691211,1750413074991,-490.0,0.00025909,4]
[366691212,1750413075000,-490.0,0.00025909,4]
[366691213,1750413075011,-490.0,0.00025909,4]
[366691214,1750413075023,-490.0,0.00025909,4]
[366691215,1750413075032,-490.0,0.00025909,4]
[366691216,1750413075042,-490.0,0.00025909,4]
[366691217,1750413075051,-490.0,0.00025909,4]
[366691218,1750413075061,-490.0,0.00025909,4]
[366691219,1750413075071,-512.11,0.00025909,4]
[366691220,1750413075081,-490.0,0.00025909,4]
[366691221,1750413075090,-490.0,0.00025909,4]
[366691222,1750413075100,-490.0,0.00025909,4]
[366691223,1750413075109,-557.41,0.00025909,4]
[366691224,1750413075119,-490.0,0.00025909,4]
[366691225,1750413075129,-490.0,0.00025909,4]
[366691226,1750413075139,-490.0,0.00025909,4]
[366691227,1750413075148,-591.66,0.00025909,4]
[366691228,1750413075158,-490.0,0.00025909,4]
[366691229,1750413075167,-801.39,0.00025909,4]
[366691230,1750413075177,-601.86,0.00025909,4]
[366691231,1750413075186,-490.0,0.00025909,4]
[366691232,1750413075196,-490.0,0.00025909,4]
[366691233,1750413075207,-490.0,0.00025909,4]
[366691234,1750413075217,-263.70830843,0.00025909,4]
[366691235,1750413075227,-490.0,0.00025909,4]
[366691236,1750413075238,-490.0,0.00025909,4]
[366691237,1750413075249,-490.0,0.00025909,4]
[366691238,1750413075258,-490.0,0.00025909,4]
[366691239,1750413075270,-490.31,0.00025909,4]
[366691240,1750413075280,-583.02696794,0.00025909,4]
[366691241,1750413075289,-490.0,0.00025909,4]
[366691242,1750413075299,-490.0,0.00025909,4]
[366691243,1750413075308,-490.0,0.00025909,4]
[366691244,1750413075318,-490.0,0.00025909,4]
[366691245,1750413075328,-490.0,0.00025909,4]
[366691246,1750413075337,-299.66911945,0.00025909,4]
[366691247,1750413075347,-490.0,0.00025909,4]
[366691248,1750413075356,-573.38,0.00025909,4]
[366691249,1750413075366,-490.0,0.00025909,4]
[366691250,1750413075376,-490.0,0.00025909,4]
[366691251,1750413075386,-600.29,0.00025909,4]
[366691252,1750413075395,-490.0,0.00025909,4]
[366691253,1750413075405,-490.0,0.00025909,4]
[366691254,1750413075415,-823.62,0.00025909,4]
[366691255,1750413075426,-490.0,0.00025909,4]
[366691256,1750413075436,-490.0,0.00025909,4]
[366691257,1750413075446,-739.86,0.00025909,4]
[366691258,1750413075456,-490.0,0.00025909,4]
[366691259,1750413075465,-490.0,0.00025909,4]
[366691260,1750413075475,-490.0,0.00025909,4]
[366691261,1750413075484,-490.0,0.00025909,4]
[366691262,1750413075493,-699.77,0.00025909,4]
[366691263,1750413075503,-676.15,0.00025909,4]
[366691264,1750413075512,-490.0,0.00025909,4]
[366691265,1750413075523,-490.0,0.00025909,4]
[366691266,1750413075533,-673.88,0.00025909,4]
[366691267,1750413075542,-490.0,0.00025909,4]
[366691268,1750413075552,-490.0,0.00025909,4]
[366691269,1750413075561,-490.0,0.00025909,4]
[366691270,1750413075571,-510.65,0.00025909,4]
[366691271,1750413075580,-490.0,0.00025909,4]
[366691272,1750413075589,-490.0,0.00025909,4]
[366691273,1750413075599,-490.0,0.00025909,4]
[366691274,1750413075608,-490.0,0.00025909,4]
[366691275,1750413075618,-452.36997526,0.00025909,4]
[366691276,1750413075630,-490.0,0.00025909,4]
[366691277,1750413075639,-518.68460719,0.00025909,4]
[366691278,1750413075648,-490.0,0.00025909,4]
[366691279,1750413075658,-490.0,0.00025909,4]
[366691280,1750413075667,-490.0,0.00025909,4]
[366691281,1750413075676,-526.52,0.00025909,4]
[366691282,1750413075686,-531.18,0.00025909,4]
[366691283,1750413075696,-508.59,0.00025909,4]
[366691284,1750413075705,-490.0,0.00025909,4]
[366691285,1750413075715,-490.0,0.00025909,4]
[366691286,1750413075725,-490.0,0.00025909,4]
[366691287,1750413075735,-921.9,0.00025909,4]
[366691288,1750413075744,-490.0,0.00025909,4]
[366691289,1750413075755,-812.36,0.00025909,4]
[366691290,1750413075764,-490.0,0.00025909,4]
[366691291,1750413075774,-611.30443395,0.00025909,4]
[366691292,1750413075783,-490.0,0.00025909,4]
[366691293,1750413075793,-490.0,0.00025909,4]
[366691294,1750413075803,-400.991217,0.00025909,7]
[366691295,1750413075812,-621.17314215,0.00025909,4]
[366691296,1750413075822,-545.1,0.00025909,4]
[366691297,1750413075831,-400.991217,0.00025909,7]
[366691298,1750413075842,-490.0,0.00025909,4]
[366691299,1750413075852,-490.0,0.00025909,4]
[366691300,1750413075862,-490.0,0.00025909,4]
[366691301,1750413075872,-490.0,0.00025909,4]
[366691302,1750413075882,-490.0,0.00025909,4]
[366691303,1750413075891,-853.64,0.00025909,4]
[366691304,1750413075901,-490.0,0.00025909,4]
[366691305,1750413075910,-792.9,0.00025909,4]